bitfinex-derivatives/quotes_BTCF0:USTF0_20241208
["timestamp","ask_amount","ask_price","bid_price","bid_amount"]
[1733626438406,0.84124674,100180.0,100170.0,0.76407943]
[1733626438603,0.11964674,100180.0,100170.0,0.76407943]
[1733626438800,0.93093683,100180.0,100170.0,1.08343014]
[1733626439911,0.93093683,100180.0,100170.0,0.98561832]
[1733626440213,0.96163683,100180.0,100170.0,0.98873692]
[1733626440417,0.96163683,100180.0,100170.0,0.98561832]
[1733626440605,0.96163683,100180.0,100170.0,0.98873695]
[1733626441708,0.96163683,100180.0,100170.0,0.98873696]
[1733626441902,0.96163683,100180.0,100170.0,0.66946856]
[1733626442608,1.08145352,100180.0,100170.0,0.13491835]
[1733626443516,1.14416441,100180.0,100170.0,0.00319305]
[1733626443708,1.08145352,100180.0,100170.0,0.00319305]
[1733626444105,0.93186298,100180.0,100170.0,0.00319305]
[1733626447116,0.93186298,100180.0,100170.0,0.00319336]
[1733626448517,0.99457387,100180.0,100170.0,0.00319336]
[1733626448815,0.96506298,100180.0,100170.0,0.00319336]
[1733626449012,1.02777387,100180.0,100170.0,0.00319336]
[1733626449715,1.1172887,100180.0,100170.0,0.41865709]
[1733626451017,0.99769856,100180.0,100170.0,0.18123171]
[1733626451419,1.17726154,100180.0,100170.0,0.18123171]
[1733626451619,1.17726154,100180.0,100170.0,0.00319336]
[1733626451620,1.02777387,100180.0,100170.0,0.00319336]
[1733626452919,1.02777387,100180.0,100170.0,0.00319363]
[1733626453120,1.02777387,100180.0,100170.0,7.441e-05]
[1733626453324,1.02777387,100180.0,100170.0,0.00319363]
[1733626453524,1.17727605,100180.0,100170.0,0.00319363]
[1733626454227,1.17728045,100180.0,100170.0,0.00319363]
[1733626454524,0.99770996,100180.0,100170.0,0.18123198]
[1733626455019,0.93499907,100180.0,100170.0,0.18123198]
[1733626455219,0.99770996,100180.0,100170.0,0.18123198]
[1733626456418,0.99770996,100180.0,100170.0,0.18123187]
[1733626457934,1.02777387,100180.0,100170.0,0.00319352]
[1733626461321,1.02777387,100180.0,100170.0,0.18123187]
[1733626462226,0.96506298,100180.0,100170.0,0.18123187]
[1733626462421,1.02777387,100180.0,100170.0,0.18123187]
[1733626463122,1.02777387,100180.0,100170.0,0.17811276]
[1733626463329,1.02777387,100180.0,100170.0,0.1812317]
[1733626464436,1.02777387,100180.0,100170.0,0.00319335]
[1733626464823,0.99769259,100180.0,100170.0,0.41865708]
[1733626466723,1.17725557,100180.0,100170.0,0.1812317]
[1733626466923,0.99769259,100180.0,100170.0,0.41865708]
[1733626469635,1.17725557,100180.0,100170.0,0.41865708]
[1733626469834,0.99769259,100180.0,100170.0,0.41865708]
[1733626470134,0.99769259,100180.0,100170.0,0.418657]
[1733626471821,0.99769259,100180.0,100170.0,0.41553814]
[1733626472032,0.99769259,100180.0,100170.0,0.41865703]
[1733626472534,1.17725557,100180.0,100170.0,0.41865703]
[1733626473030,1.11454468,100180.0,100170.0,0.41865703]
[1733626473527,0.9349817,100180.0,100170.0,0.41865703]
[1733626473926,1.11454468,100180.0,100170.0,0.418657]
[1733626474131,0.9349817,100180.0,100170.0,0.41903601]
[1733626474531,1.11454468,100180.0,100170.0,0.41903601]
[1733626475732,0.9349817,100180.0,100170.0,0.24061865]
[1733626476823,0.2133817,100180.0,100170.0,0.24061865]
[1733626477024,0.9349817,100180.0,100170.0,0.24061865]
[1733626477731,0.99769259,100180.0,100170.0,0.41905247]
[1733626477927,1.17725557,100180.0,100170.0,0.41905247]
[1733626479137,1.02777387,100180.0,100170.0,0.41905247]
[1733626479337,1.17737593,100180.0,100170.0,0.41905247]
[1733626479539,1.17737715,100180.0,100170.0,0.41905247]
[1733626479842,0.84821089,100180.0,100170.0,0.00319327]
[1733626480447,1.05770104,100180.0,100170.0,0.00319359]
[1733626480733,0.91092178,100180.0,100170.0,0.00319359]
[1733626481236,0.91092178,100180.0,100170.0,0.00319345]
[1733626481538,0.84821089,100180.0,100170.0,0.00319345]
[1733626482033,0.93181325,100180.0,100170.0,0.06590434]
[1733626482235,0.90111325,100180.0,100170.0,0.30663816]
[1733626484027,0.90111325,100180.0,100170.0,0.30351912]
[1733626484229,0.90111325,100180.0,100170.0,0.30663787]
[1733626487844,0.99082655,100180.0,100170.0,0.98248319]
[1733626488042,0.99082655,100180.0,100170.0,0.9197723]
[1733626490043,0.99082655,100180.0,100170.0,0.92935591]
[1733626491747,0.84125624,100180.0,100170.0,0.92935591]
[1733626492246,0.11965624,100180.0,100170.0,0.92935591]
[1733626492547,0.84125624,100180.0,100170.0,0.92935591]
[1733626494446,0.84125624,100180.0,100170.0,0.92623716]
[1733626494641,0.84125624,100180.0,100170.0,0.9293558]
[1733626494841,1.05068356,100180.0,100170.0,0.25341995]
[1733626495044,0.90111325,100180.0,100170.0,0.31613084]
[1733626495245,1.0506564,100180.0,100170.0,0.25341995]
[1733626495546,1.0506564,100180.0,100170.0,0.25341994]
[1733626495751,1.0506564,100180.0,100170.0,0.31613083]
[1733626497037,1.0506564,100180.0,100170.0,0.65338151]
[1733626497442,0.87114315,100180.0,100170.0,0.65338151]
[1733626498143,0.87114315,100180.0,100170.0,0.65338141]
[1733626500855,0.87114315,100180.0,100170.0,0.65026288]
[1733626501052,0.87114315,100180.0,100170.0,0.65338141]
[1733626502849,0.93087968,100180.0,100170.0,0.85307386]
[1733626503641,0.57007968,100180.0,100170.0,0.85307386]
[1733626504753,0.45049129,100180.0,100170.0,0.85307386]
[1733626505343,0.57007968,100190.0,100170.0,0.97520972]
[1733626505555,0.57007968,100190.0,100180.0,0.59731976]
[1733626505743,0.57007968,100190.0,100180.0,0.68117064]
[1733626506147,0.57007968,100190.0,100180.0,0.78099594]
[1733626506553,0.45049129,100190.0,100180.0,0.78099594]
[1733626507154,0.76124243,100200.0,100180.0,1.65654406]
[1733626507155,0.09464805,100200.0,100180.0,1.65654406]
[1733626507359,0.08964805,100200.0,100190.0,0.48335944]
[1733626507654,0.45544805,100210.0,100190.0,0.80169573]
[1733626507848,0.45044805,100210.0,100200.0,0.12542178]
[1733626508049,0.45044805,100210.0,100200.0,0.36258786]
[1733626508249,0.45044805,100210.0,100200.0,0.36570539]
[1733626508450,0.45044805,100210.0,100200.0,0.40278991]
[1733626508849,0.45044805,100210.0,100200.0,0.4655008]
[1733626509445,0.3608,100210.0,100200.0,0.64328277]
[1733626509655,0.45544805,100220.0,100200.0,1.07556866]
[1733626509848,0.45044805,100220.0,100210.0,0.06271089]
[1733626510044,0.45044805,100220.0,100210.0,0.24350638]
[1733626510472,0.45044805,100220.0,100210.0,0.34329184]
[1733626510646,0.3608,100220.0,100210.0,0.34329184]
[1733626511054,0.3608,100220.0,100210.0,0.34329162]
[1733626511257,0.3608,100220.0,100210.0,0.34429162]
[1733626511455,0.3608,100220.0,100210.0,0.34436965]
[1733626511856,0.3608,100220.0,100210.0,0.37526965]
[1733626513059,0.11227149,100230.0,100210.0,0.37526965]
[1733626513260,0.3608,100220.0,100210.0,0.34375876]
[1733626513458,0.3608,100220.0,100210.0,0.35350912]
[1733626514156,0.3608,100220.0,100210.0,0.35250912]
[1733626514364,0.3608,100220.0,100210.0,0.35350891]
[1733626515055,0.4317,100230.0,100210.0,0.35350891]
[1733626515255,0.4267,100230.0,100220.0,0.06271089]
[1733626515451,0.4267,100230.0,100220.0,0.12853888]
[1733626516065,0.4267,100230.0,100220.0,0.22831936]
[1733626516660,0.4307,100230.0,100220.0,0.22831936]
[1733626517060,0.4327,100230.0,100220.0,0.22831936]
[1733626517861,0.52234805,100230.0,100220.0,0.22831936]
[1733626520165,0.52234805,100230.0,100220.0,0.22520226]
[1733626523157,0.48904805,100230.0,100220.0,0.22520226]
[1733626523365,0.48904805,100230.0,100220.0,0.22831924]
[1733626524572,0.3994,100230.0,100220.0,0.22831924]
[1733626527072,0.4324,100230.0,100220.0,0.22831924]
[1733626528060,0.4324,100230.0,100220.0,0.22520226]
[1733626528260,0.4324,100230.0,100220.0,0.22831928]
[1733626530869,0.0716,100230.0,100220.0,0.22831928]
[1733626531071,0.7932,100230.0,100220.0,0.22831928]
[1733626531261,0.7932,100230.0,100220.0,0.16560839]
[1733626532870,1.00243644,100230.0,100220.0,0.16560839]
[1733626533379,1.00243644,100230.0,100220.0,0.22831928]
[1733626533973,1.00243644,100230.0,100220.0,0.16560839]
[1733626534482,1.06233154,100230.0,100220.0,0.16560839]
[1733626535285,1.06233154,100230.0,100220.0,0.16560845]
[1733626535581,0.94274315,100230.0,100220.0,0.16560845]
[1733626535780,0.94274315,100230.0,100220.0,0.22831934]
[1733626535985,1.1222564,100230.0,100220.0,0.22831934]
[1733626536476,0.97271325,100230.0,100220.0,0.22831934]
[1733626538280,0.97271325,100230.0,100220.0,0.22520226]
[1733626538479,0.97271325,100230.0,100220.0,0.2283194]
[1733626539578,0.97271325,100230.0,100220.0,0.40599736]
[1733626539970,0.9127832,100230.0,100220.0,1.07394591]
[1733626540581,0.9127832,100230.0,100220.0,0.71135805]
[1733626540776,1.00538989,100230.0,100220.0,0.24059639]
[1733626540977,0.942679,100230.0,100220.0,0.30330728]
[1733626541275,0.942679,100230.0,100220.0,0.48145082]
[1733626541471,0.942679,100230.0,100220.0,0.41873993]
[1733626541677,0.942679,100230.0,100220.0,0.48145082]
[1733626543572,0.942679,100230.0,100220.0,0.47833368]
[1733626543789,0.942679,100230.0,100220.0,0.48145107]
[1733626544578,0.221079,100230.0,100220.0,0.48145107]
[1733626544781,0.942679,100230.0,100220.0,0.48145107]
[1733626545282,1.03542414,100230.0,100220.0,0.13136093]
[1733626545484,0.85591089,100230.0,100220.0,0.00311755]
[1733626545780,1.36540104,100230.0,100210.0,7.803e-05]
[1733626545981,0.7464566,100220.0,100210.0,7.803e-05]
[1733626546284,0.69796088,100220.0,100210.0,7.803e-05]
[1733626546488,0.45591089,100220.0,100210.0,7.803e-05]
[1733626546684,0.63513163,100220.0,100210.0,7.803e-05]
[1733626547287,0.63513163,100220.0,100210.0,0.00107803]
[1733626547479,0.57242074,100220.0,100210.0,0.06378892]
[1733626547676,0.72169249,100220.0,100210.0,0.00107803]
[1733626547879,0.3932,100220.0,100210.0,0.00107803]
[1733626548092,0.45591089,100220.0,100210.0,0.00107803]
[1733626550499,0.63490114,100220.0,100210.0,0.00107803]
[1733626550701,0.57219025,100220.0,100210.0,0.00107803]
[1733626552397,0.5821014,100220.0,100210.0,0.00107803]
[1733626552993,0.64481229,100220.0,100210.0,0.00107803]
[1733626554904,0.73418111,100220.0,100210.0,0.00107803]
[1733626555108,0.67147022,100220.0,100210.0,0.00107803]
[1733626555399,0.73418111,100220.0,100210.0,0.00107803]
[1733626555907,1.09498111,100220.0,100210.0,0.00107803]
[1733626558298,1.09498111,100220.0,100210.0,0.00419601]
[1733626559301,1.09498111,100220.0,100210.0,0.00107803]
[1733626559812,1.09498111,100220.0,100210.0,0.00419601]
[1733626561408,0.37338111,100220.0,100210.0,0.00419601]
[1733626561607,0.97571041,100220.0,100210.0,0.00419601]
[1733626562011,1.09499465,100220.0,100210.0,0.00419601]
[1733626562315,0.97571041,100220.0,100210.0,0.00419601]
[1733626565209,1.0384213,100220.0,100210.0,0.00107803]
[1733626565402,1.0384213,100220.0,100210.0,0.00419601]
[1733626565605,1.51741155,100220.0,100190.0,0.27007925]
[1733626565808,0.78431089,100200.0,100190.0,0.0326]
[1733626566013,1.05284008,100200.0,100170.0,1.02506223]
[1733626566308,0.4812195,100190.0,100180.0,0.06271089]
[1733626566511,0.96136581,100190.0,100180.0,0.06271089]
[1733626566716,0.96136581,100190.0,100180.0,0.06283746]
[1733626567012,0.8420195,100190.0,100180.0,0.30031671]
[1733626567212,0.8420195,100190.0,100180.0,0.06283746]
[1733626567408,0.8420195,100190.0,100180.0,0.30031671]
[1733626567609,1.0240767,100190.0,100180.0,0.00012657]
[1733626567911,0.9355572,100190.0,100180.0,0.00012657]
[1733626568604,1.0260675,100190.0,100180.0,0.00012657]
[1733626568915,1.02606811,100190.0,100180.0,0.00012657]
[1733626569911,1.08574008,100190.0,100180.0,0.00012657]
[1733626574107,0.96639377,100190.0,100180.0,0.00012657]
[1733626574517,0.90368288,100190.0,100180.0,0.00012657]
[1733626574705,1.08574233,100190.0,100180.0,0.00012657]
[1733626574914,0.96639377,100190.0,100180.0,0.00012657]
[1733626575116,0.97530168,100190.0,100180.0,0.00012657]
[1733626576211,0.97430168,100190.0,100180.0,0.00012657]
[1733626577220,1.09361727,100190.0,100180.0,0.00012657]
[1733626580417,0.94443439,100190.0,100180.0,0.00324547]
[1733626583111,0.94443439,100190.0,100180.0,0.00012657]
[1733626583320,0.94443439,100190.0,100180.0,0.00324547]
[1733626584220,1.09361727,100190.0,100180.0,0.00324547]
[1733626584429,1.12401727,100190.0,100180.0,0.00324547]
[1733626584813,1.12401727,100190.0,100180.0,0.00012657]
[1733626585027,1.06741257,100190.0,100180.0,0.00012657]
[1733626585928,1.24640282,100190.0,100180.0,0.00012657]
[1733626586225,1.18369193,100190.0,100180.0,0.00012657]
[1733626587126,1.00470168,100190.0,100180.0,0.00012657]
[1733626587622,1.00470168,100190.0,100180.0,0.00324553]
[1733626587827,1.00470168,100190.0,100180.0,0.00012657]
[1733626588036,1.00470168,100190.0,100180.0,0.00324554]
[1733626589522,1.18369193,100190.0,100180.0,0.00324554]
[1733626589821,1.00470168,100190.0,100180.0,0.00324554]
[1733626590619,1.18369193,100190.0,100180.0,0.00324554]
[1733626590819,1.18372866,100190.0,100180.0,0.00324554]
[1733626592429,1.03454236,100190.0,100180.0,0.00324554]
[1733626593020,1.18380935,100190.0,100180.0,0.00324554]
[1733626593422,1.03454236,100190.0,100180.0,0.00324554]
[1733626594129,1.09725325,100190.0,100180.0,0.00324554]
[1733626596930,1.09725325,100190.0,100180.0,0.00324559]
[1733626597225,0.8555188,100190.0,100180.0,0.00324559]
[1733626597432,1.035007,100190.0,100180.0,0.00324559]
[1733626597821,0.97229611,100190.0,100180.0,0.00324559]
[1733626598024,1.035007,100190.0,100180.0,0.00324559]
[1733626604537,0.8555188,100190.0,100180.0,0.00324559]
[1733626604732,1.06437962,100190.0,100180.0,0.00324559]
[1733626604929,1.12709051,100190.0,100180.0,0.00324559]
[1733626605436,1.03397962,100190.0,100180.0,0.00324559]
[1733626605824,1.03397962,100190.0,100180.0,0.00012657]
[1733626606040,1.03397962,100190.0,100180.0,0.00324556]
[1733626608031,0.8251188,100190.0,100180.0,0.00324556]
[1733626608233,1.03397962,100190.0,100180.0,0.00324556]
[1733626614241,1.03397962,100190.0,100180.0,0.00012657]
[1733626614442,1.03397962,100190.0,100180.0,0.00324556]
[1733626615140,0.8251188,100190.0,100180.0,0.00324556]
[1733626617541,1.00471666,100190.0,100180.0,0.00324556]
[1733626617839,0.8251188,100190.0,100180.0,0.00324556]
[1733626621139,0.8251188,100190.0,100180.0,0.00324545]
[1733626621841,1.06741878,100190.0,100180.0,0.00324545]
[1733626622049,0.88782969,100190.0,100180.0,0.00324545]
[1733626622246,0.88782969,100190.0,100170.0,0.26796631]
[1733626622247,1.12859051,100190.0,100170.0,0.26796631]
[1733626622448,0.74702611,100180.0,100160.0,0.56487419]
[1733626622647,0.74702611,100180.0,100160.0,0.88470863]
[1733626622648,0.57315755,100170.0,100160.0,0.88470863]
[1733626622949,0.60310363,100170.0,100160.0,0.26816631]
[1733626623142,0.42351089,100170.0,100160.0,0.0308]
[1733626623342,0.42351089,100170.0,100160.0,0.03091873]
[1733626623543,0.60303262,100170.0,100160.0,0.03091873]
[1733626623743,0.63503262,100170.0,100160.0,0.03091873]
[1733626624042,0.63513024,100170.0,100160.0,0.03091873]
[1733626624352,0.3608,100150.0,100130.0,0.01]
[1733626624642,1.00085602,100140.0,100110.0,0.09551089]
[1733626624843,0.93071777,100120.0,100110.0,0.3328]
[1733626625050,0.93071777,100120.0,100110.0,0.78656019]
[1733626625051,0.0896223,100120.0,100110.0,0.78656019]
[1733626625253,0.0896223,100120.0,100110.0,0.84937589]
[1733626625254,0.4004223,100120.0,100110.0,0.84937589]
[1733626626350,0.4014223,100120.0,100110.0,0.84937589]
[1733626626649,0.3618,100120.0,100110.0,0.84937589]
[1733626627240,0.3628,100120.0,100110.0,0.84937589]
[1733626629652,0.3628,100120.0,100110.0,0.786665]
[1733626629846,0.43551089,100120.0,100110.0,0.486665]
[1733626630249,0.43551089,100120.0,100110.0,0.132765]
[1733626634355,0.43551089,100120.0,100110.0,0.13588554]
[1733626638647,0.43551089,100120.0,100110.0,0.10308554]
[1733626640355,0.43551089,100120.0,100110.0,0.099965]
[1733626640556,0.43551089,100120.0,100110.0,0.10308552]
[1733626642555,0.43551089,100120.0,100110.0,0.13438552]
[1733626647259,0.43551089,100120.0,100110.0,0.13438559]
[1733626649157,0.46571089,100120.0,100110.0,0.13438559]
[1733626650056,0.82651089,100120.0,100110.0,0.13438559]
[1733626650459,0.82551089,100120.0,100110.0,0.13438559]
[1733626650863,0.82451089,100120.0,100110.0,0.13438559]
[1733626652055,0.7316,100120.0,100110.0,0.79380436]
[1733626652257,0.01,100120.0,100110.0,1.495027]
[1733626652563,0.3658,100130.0,100110.0,1.62265742]
[1733626652756,0.3608,100130.0,100120.0,0.81063313]
[1733626652963,0.3608,100130.0,100120.0,1.1260269]
[1733626653262,0.3608,100130.0,100120.0,1.12310776]
[1733626653464,0.3608,100130.0,100120.0,1.59461011]
[1733626653962,0.3618,100130.0,100120.0,1.59148952]
[1733626654164,0.3618,100130.0,100120.0,1.60497735]
[1733626654467,0.3618,100130.0,100120.0,1.64303888]
[1733626655162,0.3618,100130.0,100120.0,1.60809719]
[1733626655163,0.3628,100130.0,100120.0,1.60809719]
[1733626655763,0.3628,100130.0,100120.0,1.18267541]
[1733626655961,0.3628,100130.0,100120.0,1.0975774]
[1733626656358,0.3628,100130.0,100120.0,1.11112766]
[1733626656554,0.3628,100130.0,100120.0,1.0975774]
[1733626656967,0.3628,100130.0,100120.0,1.16028829]
[1733626657169,0.3628,100130.0,100120.0,1.51418829]
[1733626657563,0.3628,100130.0,100120.0,1.52772281]
[1733626659572,0.3628,100130.0,100120.0,1.15729119]
[1733626659867,0.3628,100130.0,100120.0,1.94596746]
[1733626660072,0.3628,100130.0,100120.0,1.959471]
[1733626660273,0.3628,100130.0,100120.0,1.59040272]
[1733626661159,0.3628,100130.0,100120.0,1.60031445]
[1733626662976,0.3628,100130.0,100120.0,1.24367547]
[1733626663271,0.3628,100130.0,100120.0,1.60057257]
[1733626663665,0.3628,100130.0,100120.0,1.24367547]
[1733626663865,0.3628,100130.0,100120.0,1.2301707]
[1733626665173,0.3628,100130.0,100120.0,1.10474892]
[1733626665474,0.3628,100130.0,100120.0,1.13655981]
[1733626665678,0.3952,100130.0,100120.0,0.5295226]
[1733626665881,0.3952,100130.0,100120.0,0.46681171]
[1733626666067,0.3952,100130.0,100120.0,0.5295226]
[1733626666268,0.3952,100130.0,100120.0,0.1756226]
[1733626668267,0.3952,100130.0,100120.0,0.1756229]
[1733626671979,0.3952,100130.0,100120.0,0.47304918]
[1733626672174,0.3628,100130.0,100120.0,0.53576007]
[1733626672370,0.3628,100130.0,100120.0,0.8781176]
[1733626673981,0.3628,100130.0,100120.0,0.81540671]
[1733626674278,0.3628,100130.0,100120.0,0.81540664]
[1733626675977,0.3628,100130.0,100120.0,1.17230374]
[1733626677187,0.3628,100130.0,100120.0,1.18581744]
[1733626677375,0.3628,100130.0,100120.0,1.23501463]
[1733626678283,0.3628,100130.0,100120.0,1.23501452]
[1733626678483,0.002,100130.0,100120.0,1.23501452]
[1733626678680,0.002,100130.0,100120.0,0.93446828]
[1733626678981,0.002,100130.0,100120.0,1.30831259]
[1733626679180,0.002,100130.0,100120.0,1.32179061]
[1733626679574,0.002,100130.0,100120.0,1.30831259]
[1733626679782,0.002,100130.0,100120.0,1.32179215]
[1733626680480,0.3628,100130.0,100120.0,1.32179215]
[1733626680881,0.3628,100130.0,100120.0,1.30831259]
[1733626681179,0.3628,100130.0,100120.0,1.67430881]
[1733626685289,0.3628,100130.0,100120.0,1.61159792]
[1733626685783,0.3628,100130.0,100120.0,1.59810847]
[1733626685978,0.3628,100130.0,100120.0,1.53539758]
[1733626686178,0.3628,100130.0,100120.0,1.59810847]
[1733626687289,0.3628,100130.0,100120.0,1.61164828]
[1733626687488,0.3628,100130.0,100120.0,1.61164839]
[1733626688585,0.3628,100130.0,100120.0,1.61164837]
[1733626688791,0.3628,100130.0,100120.0,1.67435926]
[1733626689291,0.3628,100130.0,100120.0,1.67435928]
[1733626690583,0.002,100130.0,100120.0,1.67435928]
[1733626690881,0.002,100130.0,100120.0,1.6755251]
[1733626690882,0.3628,100130.0,100120.0,1.6755251]
[1733626693287,0.3628,100130.0,100120.0,1.71046764]
[1733626693689,0.3628,100130.0,100120.0,1.71046795]
[1733626694086,0.3628,100130.0,100120.0,1.71046786]
[1733626694301,0.3628,100130.0,100120.0,1.67552512]
[1733626694488,0.3628,100130.0,100120.0,1.73055464]
[1733626695195,0.3628,100130.0,100120.0,1.60513286]
[1733626695389,0.3628,100130.0,100120.0,1.61936116]
[1733626695780,0.3628,100130.0,100120.0,1.62034143]
[1733626697096,0.3628,100130.0,100120.0,1.66883659]
[1733626697294,0.3628,100130.0,100120.0,1.73154748]
[1733626697490,0.51819547,100140.0,100120.0,2.53365882]
[1733626697689,0.0329,100140.0,100130.0,0.45046522]
[1733626697999,0.51749547,100150.0,100130.0,1.2446742]
[1733626698193,0.51249547,100150.0,100140.0,0.78009501]
[1733626698396,0.393,100150.0,100140.0,1.09496038]
[1733626698800,0.393,100150.0,100140.0,1.19482556]
[1733626699500,0.393,100150.0,100140.0,1.19582556]
[1733626700293,0.393,100150.0,100140.0,1.19682556]
[1733626701195,0.393,100150.0,100140.0,1.19370602]
[1733626701385,0.393,100150.0,100140.0,1.19682536]
[1733626702289,0.393,100150.0,100140.0,1.13411447]
[1733626704101,0.393,100150.0,100140.0,0.77701998]
[1733626704690,0.393,100150.0,100140.0,0.77701999]
[1733626705302,0.393,100150.0,100140.0,0.77447263]
[1733626705602,0.45571089,100150.0,100140.0,0.61189656]
[1733626705901,0.57520636,100150.0,100140.0,0.42135916]
[1733626711202,0.57520636,100150.0,100140.0,0.24295189]
[1733626711403,0.57520636,100150.0,100140.0,0.23983254]
[1733626711696,0.57520636,100150.0,100140.0,0.24295221]
[1733626711899,0.57520636,100150.0,100140.0,0.42136124]
[1733626712292,0.7245757,100150.0,100140.0,0.42136124]
[1733626712503,0.60508023,100150.0,100140.0,0.1835287]
[1733626713996,0.60508023,100150.0,100140.0,0.00511967]
[1733626713997,0.78431447,100150.0,100140.0,0.00511967]
[1733626715002,0.78431447,100150.0,100140.0,0.00511969]
[1733626715201,0.78431447,100150.0,100140.0,0.00511973]
[1733626716700,0.60508023,100150.0,100140.0,0.18352876]
[1733626717503,0.24428023,100150.0,100140.0,0.18352876]
[1733626717807,0.96588023,100150.0,100140.0,0.18352876]
[1733626718106,0.90316934,100150.0,100140.0,0.18352876]
[1733626718305,0.90316934,100150.0,100140.0,0.18352866]
[1733626718709,0.90316934,100150.0,100140.0,0.18352869]
[1733626720403,0.7538,100150.0,100140.0,0.42136123]
[1733626720599,0.87338021,100150.0,100140.0,0.42136123]
[1733626720806,0.87338021,100150.0,100140.0,0.43135964]
[1733626721402,0.87338021,100150.0,100140.0,0.42136123]
[1733626722000,0.87338021,100150.0,100140.0,0.42136121]
[1733626725629,0.87338021,100150.0,100140.0,0.42136123]
[1733626727019,1.02274955,100150.0,100140.0,0.42136123]
[1733626727219,0.87338021,100150.0,100140.0,0.54053094]
[1733626727531,0.90316934,100150.0,100140.0,0.42141164]
[1733626728330,0.90316934,100150.0,100140.0,0.42141163]
[1733626728934,0.90316934,100150.0,100140.0,0.42141164]
[1733626729428,1.08240358,100150.0,100140.0,0.42141164]
[1733626729726,1.08240358,100150.0,100140.0,0.1835791]
[1733626730120,0.90316934,100150.0,100140.0,0.42141164]
[1733626732532,0.90316934,100150.0,100140.0,0.42141159]
[1733626732931,1.08240358,100150.0,100140.0,0.42141159]
[1733626735425,1.08240358,100150.0,100140.0,0.85204195]
[1733626735426,0.90316934,100150.0,100140.0,0.85204195]
[1733626735632,1.02290528,100150.0,100140.0,0.85204195]
[1733626735830,0.90316934,100150.0,100140.0,0.84927178]
[1733626736026,0.90316934,100150.0,100140.0,0.85239145]
[1733626736225,1.02290828,100150.0,100140.0,0.85239145]
[1733626736526,0.90316934,100150.0,100140.0,0.85239145]
[1733626736929,1.02290746,100150.0,100140.0,0.85239145]
[1733626737633,0.90316934,100150.0,100140.0,0.85239145]
[1733626738332,1.02290989,100150.0,100140.0,0.85239145]
[1733626738526,1.02290989,100150.0,100140.0,0.61420947]
[1733626738724,1.02290989,100150.0,100140.0,0.85243823]
[1733626738924,0.90316934,100150.0,100140.0,0.85243823]
[1733626739128,1.02291084,100150.0,100140.0,0.85243823]
[1733626739325,0.90316934,100150.0,100140.0,0.85243817]
[1733626739634,1.02291296,100150.0,100140.0,0.61420941]
[1733626739934,1.02291296,100150.0,100140.0,0.85232315]
[1733626740121,1.02291296,100150.0,100140.0,0.61407472]
[1733626740528,1.02291296,100150.0,100140.0,0.61407471]
[1733626740829,1.02291455,100150.0,100140.0,0.85234925]
[1733626741231,1.02291378,100150.0,100140.0,0.85234925]
[1733626741534,1.02291378,100150.0,100140.0,0.61095511]
[1733626741535,0.90316934,100150.0,100140.0,0.61095511]
[1733626741836,0.90316934,100150.0,100140.0,0.85235116]
[1733626742421,0.90316934,100150.0,100140.0,0.85235662]
[1733626742630,0.90316934,100150.0,100140.0,0.8523568]
[1733626742827,0.90316934,100150.0,100140.0,0.61407477]
[1733626743734,0.90316934,100150.0,100140.0,0.85236212]
[1733626744130,0.90316934,100150.0,100140.0,0.61407477]
[1733626744538,0.99574513,100150.0,100140.0,0.42218085]
[1733626744932,0.99574513,100150.0,100140.0,0.41906119]
[1733626745130,0.99574513,100150.0,100140.0,0.42218112]
[1733626745639,1.08269394,100150.0,100140.0,0.48489201]
[1733626745942,1.08269394,100150.0,100140.0,0.42218112]
[1733626746145,1.08269394,100150.0,100140.0,0.85273683]
[1733626746146,0.9034597,100150.0,100140.0,0.85273683]
[1733626747336,0.9034597,100150.0,100140.0,0.91544772]
[1733626747540,0.9034597,100150.0,100140.0,0.54100568]
[1733626747741,0.9034597,100150.0,100140.0,0.9152657]
[1733626748442,0.96617059,100150.0,100140.0,0.85249676]
[1733626748840,0.96617059,100150.0,100140.0,0.85249677]
[1733626749143,0.9034597,100150.0,100140.0,0.85249677]
[1733626750241,0.9034597,100150.0,100140.0,0.54094763]
[1733626750441,0.93303424,100150.0,100140.0,0.7196367]
[1733626750641,0.93303424,100150.0,100140.0,0.42205796]
[1733626750846,0.93303424,100150.0,100140.0,0.18380874]
[1733626751041,0.99574513,100150.0,100140.0,0.18380874]
[1733626751945,0.99574513,100150.0,100140.0,0.18068907]
[1733626752146,0.99574513,100150.0,100140.0,0.18380875]
[1733626752646,0.93303424,100150.0,100140.0,0.18380875]
[1733626755038,0.93303424,100150.0,100140.0,0.42205797]
[1733626757047,0.93303424,100150.0,100140.0,0.48476886]
[1733626757544,1.02317384,100150.0,100140.0,0.9153526]
[1733626757745,1.02317384,100150.0,100140.0,0.54094764]
[1733626757945,1.02317384,100150.0,100140.0,0.91535241]
[1733626758546,1.02317384,100150.0,100140.0,0.92505864]
[1733626758744,1.02317384,100150.0,100140.0,0.92505861]
[1733626759048,1.02317384,100150.0,100140.0,0.92193896]
[1733626759245,1.02317384,100150.0,100140.0,0.92505861]
[1733626761247,0.90345213,100150.0,100140.0,0.68680939]
[1733626762157,0.90345213,100150.0,100140.0,0.6240985]
[1733626762747,0.90345213,100150.0,100140.0,0.62403831]
[1733626765055,0.90345213,100150.0,100140.0,0.86236674]
[1733626765056,1.02317577,100150.0,100140.0,0.86236674]
[1733626765561,0.93303424,100150.0,100140.0,0.43190038]
[1733626768852,0.93303424,100150.0,100140.0,0.42219415]
[1733626772757,1.02316793,100150.0,100140.0,0.61415247]
[1733626773559,1.02316793,100150.0,100140.0,0.62387977]
[1733626774456,1.02316793,100150.0,100140.0,0.68659066]
[1733626775056,1.02316793,100150.0,100140.0,0.62387977]
[1733626775457,1.02321361,100150.0,100140.0,0.62387977]
[1733626775652,0.90344885,100150.0,100140.0,0.62387977]
[1733626775857,0.90344885,100150.0,100140.0,0.62076012]
[1733626776066,0.90344885,100150.0,100140.0,0.62387974]
[1733626776563,0.99101756,100150.0,100140.0,1.20625121]
[1733626776861,0.20959095,100150.0,100140.0,1.31250951]
[1733626777061,0.20959095,100150.0,100140.0,1.3129169]
[1733626777251,0.20959095,100150.0,100140.0,0.95541502]
[1733626777252,0.08982224,100150.0,100140.0,0.95541502]
[1733626777452,0.08982224,100150.0,100140.0,1.31273877]
[1733626779766,0.08982224,100150.0,100140.0,1.31273837]
[1733626780555,0.60639095,100160.0,100140.0,1.66663837]
[1733626780756,0.60139095,100160.0,100150.0,0.59842016]
[1733626780963,0.60139095,100160.0,100150.0,0.91299346]
[1733626781664,0.24059095,100160.0,100150.0,0.91299346]
[1733626781863,0.60139095,100160.0,100150.0,0.91299346]
[1733626782557,0.60339095,100160.0,100150.0,0.91101272]
[1733626782758,0.60739095,100160.0,100150.0,0.91101272]
[1733626782960,0.51756871,100160.0,100150.0,0.60153938]
[1733626783160,0.51756871,100160.0,100150.0,0.63303938]
[1733626783357,0.57627623,100160.0,100150.0,0.86700089]
[1733626783564,0.45650752,100160.0,100150.0,1.22439498]